bitfinex/quotes_SOLUSD_20220212
["timestamp","ask_amount","ask_price","bid_price","bid_amount"]
[1644641417487,5.164,96.858,96.77,0.024]
[1644641417689,5.164,96.859,96.77,0.024]
[1644641417886,14.88,96.86,96.77,0.024]
[1644641417887,30.3794,96.86,96.771,5.164]
[1644641418087,5.164,96.859,96.78,0.024]
[1644641418489,5.164,96.859,96.782,44.20419227]
[1644641418689,5.164,96.859,96.783,5.164]
[1644641420092,15.5,96.85,96.783,5.164]
[1644641420293,5.164,96.849,96.783,5.164]
[1644641420492,28.972,96.849,96.783,5.164]
[1644641421496,28.972,96.849,96.78,47.12997986]
[1644641421696,28.972,96.849,96.75,0.024]
[1644641421894,15.5041,96.83,96.76,0.024]
[1644641422094,15.5041,96.83,96.737,5.165]
[1644641422095,27.8609,96.829,96.75,0.024]
[1644641422902,15.5069,96.81,96.75,0.024]
[1644641423195,5.166,96.809,96.737,38.75790966]
[1644641423395,5.166,96.809,96.73,0.024]
[1644641423597,47.4358,96.808,96.73,0.024]
[1644641423895,208.4986,96.8,96.73,0.024]
[1644641424094,14.88,96.79,96.73,0.024]
[1644641424298,28.3196,96.789,96.697,43.05546159]
[1644641424694,28.3196,96.789,96.71,0.024]
[1644641425095,54.49804594,96.789,96.71,0.024]
[1644641425896,15.5147,96.78,96.71,0.024]
[1644641426196,14.88,96.77,96.71,0.024]
[1644641426397,14.88,96.77,96.712,47.1625494]
[1644641426694,5.167,96.769,96.69,0.024]
[1644641426897,5.167,96.769,96.71,0.024]
[1644641427095,5.167,96.769,96.69,0.024]
[1644641427295,5.167,96.769,96.7,0.024]
[1644641427497,5.167,96.769,96.704,46.27779649]
[1644641427996,5.167,96.769,96.71,0.024]
[1644641428197,5.167,96.769,96.69,0.024]
[1644641428398,5.167,96.769,96.67,0.024]
[1644641428800,15.5154,96.76,96.67,0.024]
[1644641428997,5.168,96.759,96.69,36.93150839]
[1644641429199,30.3954,96.76,96.7,0.024]
[1644641429402,5.168,96.759,96.7,0.024]
[1644641429599,5.168,96.759,96.67,0.024]
[1644641429799,5.168,96.759,96.67,15.5399]
[1644641429998,5.168,96.759,96.68,0.024]
[1644641430405,5.168,96.759,96.702,34.25990817]
[1644641430599,5.168,96.759,96.734,0.00668159]
[1644641430801,15.5168,96.75,96.734,0.00668159]
[1644641431000,14.88,96.74,96.734,0.00668159]
[1644641431198,5.168,96.739,96.734,0.00668159]
[1644641431802,20.94,96.74,96.734,0.00668159]
[1644641432002,14.88,96.74,96.734,0.00668159]
[1644641432603,20.94,96.74,96.734,0.00668159]
[1644641432805,6.06,96.74,96.734,0.00668159]
[1644641433404,5.168,96.798,96.734,0.00668159]
[1644641434304,30.3915,96.8,96.734,0.00668159]
[1644641434305,30.3915,96.8,96.736,39.22938974]
[1644641435504,5.166,96.799,96.736,39.22938974]
[1644641437007,30.3915,96.8,96.736,39.22938974]
[1644641438224,5.166,96.799,96.736,39.22938974]
[1644641439025,30.3915,96.8,96.736,39.22938974]
[1644641439226,14.88,96.8,96.736,39.22938974]
[1644641439425,30.3863,96.82,96.736,39.22938974]
[1644641439628,5.166,96.819,96.74,0.024]
[1644641439826,14.88,96.83,96.74,0.024]
[1644641440027,5.166,96.829,96.741,5.166]
[1644641440228,23.21,96.844,96.75,0.024]
[1644641440427,23.21,96.844,96.751,5.165]
[1644641440626,5.165,96.843,96.76,0.024]
[1644641441030,5.165,96.843,96.76,15.5242]
[1644641441427,5.165,96.859,96.76,15.5242]
[1644641442829,30.3784,96.86,96.79,15.4982]
[1644641443029,30.3784,96.86,96.792,42.9744583]
[1644641443234,30.3784,96.86,96.793,5.163]
[1644641443430,30.3784,96.86,96.793,14.003]
[1644641444530,5.163,96.859,96.8,15.4968]
[1644641444733,5.163,96.888,96.8,15.4968]
[1644641444932,28.8934,96.909,96.81,0.024]
[1644641445132,28.8934,96.909,96.8,0.024]
[1644641445334,28.8934,96.909,96.81,0.024]
[1644641445533,28.8934,96.909,96.8,0.024]
[1644641446838,28.8934,96.909,96.83,15.4903]
[1644641447139,28.8934,96.909,96.832,38.61920217]
[1644641449342,28.8934,96.909,96.84,15.4907]
[1644641450643,2.38366791,96.908,96.84,15.4907]
[1644641451444,23.7314,96.909,96.84,15.4907]
[1644641451643,5.16,96.908,96.84,15.4907]
[1644641452243,15.4916,96.9,96.84,15.4907]
[1644641452446,5.16,96.899,96.84,15.4907]
[1644641453047,23.7314,96.909,96.84,15.4907]
[1644641454348,5.16,96.908,96.84,15.4907]
[1644641455351,5.16,96.929,96.86,15.4843]
[1644641455550,7.0,96.95,96.87,14.88]
[1644641455752,5.159,96.976,96.87,19.88]
[1644641455953,5.158,96.985,96.871,5.158]
[1644641456150,5.158,96.989,96.871,7.54166791]
[1644641456352,7.0,97.0,96.872,2.38366791]
[1644641456550,5.158,96.999,96.873,66.788]
[1644641456751,5.158,97.012,96.873,66.788]
[1644641457053,7.0,97.01,96.874,2.38366791]
[1644641457254,7.0,97.01,96.876,36.53721726]
[1644641457456,5.157,97.009,96.89,14.88]
[1644641457654,5.157,97.009,96.892,46.76797722]
[1644641457855,5.157,97.013,96.9,15.4766]
[1644641458055,5.157,97.013,96.901,5.156]
[1644641458454,5.157,97.013,96.902,2.38366791]
[1644641458655,5.157,97.013,96.903,5.156]
[1644641458856,2.657,97.013,96.903,5.156]
[1644641459057,2.657,97.013,96.904,2.38366791]
[1644641459456,5.156,97.019,96.931,45.92990643]
[1644641459655,5.156,97.019,96.932,2.499]
[1644641460255,5.156,97.019,96.933,2.38366791]
[1644641460456,0.63603804,96.976,96.95,15.4723]
[1644641460656,0.63603804,96.976,96.951,42.71043262]
[1644641460859,0.63603804,96.976,96.951,45.20943262]
[1644641461055,0.63603804,96.976,96.951,42.71043262]
[1644641461755,0.63603804,96.976,96.96,15.4709]
[1644641462957,0.63603804,96.976,96.951,42.71043262]
[1644641465662,5.79283317,97.029,96.95,15.4725]
[1644641466664,5.79283317,97.029,96.951,47.94227259]
[1644641466968,0.63683317,97.029,96.971,42.25606975]
[1644641467876,0.63683317,97.029,96.98,15.4679]
[1644641469869,0.63683317,97.029,96.981,2.38366791]
[1644641470069,0.63683317,97.029,96.99,15.4645]
[1644641470271,0.63683317,97.029,96.991,48.74566116]
[1644641470671,0.64525591,97.048,96.991,48.74566116]
[1644641471071,0.64525591,97.048,96.992,2.38366791]
[1644641471272,0.64525591,97.048,96.992,7.53566791]
[1644641471470,0.64525591,97.048,97.0,15.4645]
[1644641471698,0.64525591,97.048,97.001,5.152]
[1644641471896,0.64525591,97.048,97.001,7.53566791]
[1644641472097,0.64525591,97.048,97.002,2.38366791]
[1644641472799,0.64525591,97.048,97.01,15.4606]
[1644641472998,0.64525591,97.048,97.011,45.40571569]
[1644641473398,0.64525591,97.048,97.011,47.7893836]
[1644641474899,0.64525591,97.048,97.02,15.4605]
[1644641475599,0.64525591,97.048,97.011,45.40571569]
[1644641475800,2.38366791,97.087,97.011,45.40571569]
[1644641475999,5.152,97.086,97.011,45.40571569]
[1644641476200,5.151,97.088,97.011,45.40571569]
[1644641476401,5.151,97.089,97.011,45.40571569]
[1644641476801,15.4634,97.08,97.011,45.40571569]
[1644641477002,5.152,97.079,97.011,45.40571569]
[1644641480005,5.152,97.089,97.011,45.40571569]
[1644641480406,0.65382807,97.088,97.011,45.40571569]
[1644641480604,5.152,97.087,97.011,45.40571569]
[1644641482006,5.152,97.087,97.012,5.152]
[1644641482808,15.4627,97.08,97.012,5.152]
[1644641483010,5.152,97.079,97.011,45.40571569]
[1644641483608,5.152,97.079,97.0,15.4629]
[1644641484708,5.152,97.079,97.001,42.07376377]
[1644641490316,15.4627,97.08,97.002,5.152]
[1644641490515,0.65224135,97.078,97.002,5.152]
[1644641490914,5.152,97.077,97.01,14.88]
[1644641491915,5.152,97.077,97.01,30.3413]
[1644641493416,5.152,97.077,97.011,2.38366791]
[1644641493619,0.65224135,97.078,97.03,15.4571]
[1644641493817,0.65224135,97.078,97.031,41.82391413]
[1644641494820,0.65224135,97.078,97.04,15.4564]
[1644641495723,24.90732396,97.109,97.04,15.4564]
[1644641497222,24.90732396,97.109,97.041,5.15]
[1644641499322,24.90732396,97.109,97.05,15.4548]
[1644641499529,24.90732396,97.109,97.051,42.81796216]
[1644641499724,24.90732396,97.109,97.051,45.20163007]
[1644641499927,24.90732396,97.109,97.052,2.38366791]
[1644641500737,24.90732396,97.109,97.06,15.4532]
[1644641501129,24.90732396,97.109,97.051,42.81796216]
[1644641501330,24.90732396,97.109,97.05,14.88]
[1644641501530,24.90732396,97.109,97.051,5.15]
[1644641502231,24.90732396,97.109,97.06,15.4539]
[1644641502428,24.90732396,97.109,97.061,48.37267458]
[1644641504834,24.90732396,97.109,97.06,15.4539]
[1644641512769,0.65192396,97.109,97.06,15.4539]
[1644641512969,0.65192396,97.109,97.07,15.4509]
[1644641513173,0.65192396,97.109,97.08,14.88]
[1644641515774,0.65795208,97.13,97.08,14.88]
[1644641515971,0.69600925,97.13,97.08,14.88]
[1644641516172,1.44883079,97.128,97.08,14.88]
[1644641516774,1.44883079,97.126,97.08,30.3309]
[1644641517176,22.91817719,97.125,97.08,30.3309]
[1644641517474,22.91817719,97.125,97.081,7.53266791]
[1644641517673,0.65795208,97.13,97.081,7.53266791]
[1644641517877,0.65795208,97.13,97.082,2.38366791]
[1644641518076,22.91726657,97.129,97.083,5.149]
[1644641518477,22.91726657,97.129,97.084,2.38366791]
[1644641518678,22.91726657,97.129,97.08,14.88]
[1644641518877,22.91726657,97.129,97.091,41.07352377]
[1644641519277,22.91726657,97.129,97.091,35.4212414]
[1644641519482,22.91726657,97.129,97.09,14.88]
[1644641519678,1.44883079,97.128,97.07,14.88]
[1644641519879,1.44883079,97.122,97.07,14.88]
[1644641520080,1.44883079,97.121,97.07,14.88]
[1644641520479,22.91726657,97.12,97.071,5.149]
[1644641520879,1.44883079,97.116,97.071,5.149]
[1644641521183,1.44883079,97.115,97.05,14.88]
[1644641521381,5.15,97.115,97.05,14.88]
[1644641521584,5.15,97.115,97.051,34.77593016]
[1644641521780,1.44883079,97.119,97.06,15.4541]
[1644641521982,6.59883079,97.119,97.06,15.4541]
[1644641522780,1.44883079,97.113,97.06,15.4541]
[1644641523181,5.15,97.112,97.06,15.4541]
[1644641523682,1.44883079,97.111,97.06,15.4541]
[1644641523883,1.44883079,97.11,97.06,15.4541]
[1644641524106,1.44883079,97.109,97.06,15.4541]
[1644641524889,1.44883079,97.108,97.06,15.4541]
[1644641525689,1.44883079,97.103,97.06,15.4541]
[1644641526490,1.44883079,97.102,97.06,15.4541]
[1644641527295,1.44883079,97.101,97.06,15.4541]
[1644641527891,1.44883079,97.1,97.06,15.4541]
[1644641528295,1.44883079,97.099,97.06,15.4541]
[1644641528495,1.44883079,97.098,97.06,15.4541]
[1644641529393,1.44883079,97.099,97.06,15.4541]
[1644641529596,1.44883079,97.098,97.06,15.4541]
[1644641529893,1.44883079,97.099,97.06,15.4541]
[1644641530093,1.44883079,97.098,97.06,15.4541]
[1644641530294,2.10472112,97.101,97.06,15.4541]
[1644641530995,1.44883079,97.1,97.051,34.77593016]
[1644641531197,1.44883079,97.099,97.051,34.77593016]
[1644641532411,1.44883079,97.098,97.051,34.77593016]
[1644641533311,1.44883079,97.097,97.051,34.77593016]
[1644641533711,1.44883079,97.098,97.051,34.77593016]
[1644641534013,1.44883079,97.1,97.06,15.4539]
[1644641534213,1.44883079,97.1,97.06,30.3339]
[1644641534410,0.65589033,97.101,97.06,30.3339]
[1644641534611,0.65589033,97.101,97.061,5.15]
[1644641535213,0.65589033,97.101,97.071,41.16775221]
[1644641535615,0.65541447,97.109,97.071,41.16775221]
[1644641540320,2.10678287,97.113,97.071,41.16775221]
[1644641540520,0.65795208,97.113,97.071,41.16775221]
[1644641540721,1.44883079,97.111,97.071,41.16775221]
[1644641541324,20.93298665,97.11,97.071,41.16775221]
[1644641542124,1.44883079,97.112,97.071,41.16775221]
[1644641542522,20.9441456,97.111,97.071,41.16775221]
[1644641542725,22.39297639,97.111,97.071,41.16775221]
[1644641543323,20.9441456,97.11,97.071,41.16775221]
[1644641545626,0.65715913,97.109,97.071,41.16775221]
[1644641546326,20.9441456,97.108,97.071,41.16775221]
[1644641547831,20.4441456,97.108,97.071,41.16775221]
[1644641548727,20.4441456,97.108,97.08,15.4508]
[1644641550530,0.65684195,97.107,97.08,15.4508]
[1644641551131,0.65684195,97.107,97.071,41.16775221]
[1644641551730,0.65684195,97.107,97.07,14.88]
[1644641553831,0.65684195,97.107,97.07,30.3323]
[1644641555437,2.10567274,97.107,97.07,30.3323]
[1644641556234,0.65684195,97.107,97.07,30.3323]
[1644641560235,1.94229488,97.109,97.07,30.3323]
[1644641561234,1.44883079,97.108,97.07,30.3323]
[1644641561439,1.94229488,97.109,97.055,5.149]
[1644641561737,1.44883079,97.102,97.055,5.149]
[1644641561937,1.44883079,97.102,96.989,2.89239622]
[1644641561938,1.44883079,97.089,97.01,14.88]
[1644641562138,1.44883079,97.086,97.01,14.88]
[1644641562437,1.44883079,97.083,97.011,47.80734562]
[1644641562635,15.4608,97.09,97.011,47.80734562]
[1644641562636,1.44883079,97.082,97.011,47.80734562]
[1644641563036,1.44883079,97.082,97.012,5.152]
[1644641563439,1.44883079,97.08,97.012,5.152]
[1644641563736,1.44883079,97.079,97.02,15.4599]
[1644641564336,1.44883079,97.078,97.02,30.3399]
[1644641564538,28.9065,97.089,97.02,30.3399]
[1644641564539,1.44883079,97.085,97.02,30.3399]
[1644641565238,1.44883079,97.08,97.02,30.3399]
[1644641565444,6.59983079,97.079,97.02,14.88]
[1644641565638,1.44883079,97.079,97.02,14.88]
[1644641565843,5.152,97.078,97.02,14.88]
[1644641566043,1.44883079,97.076,97.02,14.88]
[1644641566239,1.44883079,97.078,97.02,14.88]
[1644641566438,5.152,97.077,97.021,5.152]
[1644641566639,6.60083079,97.077,97.02,14.88]
[1644641566838,1.44883079,97.077,97.02,14.88]
[1644641567037,5.152,97.076,97.02,14.88]
[1644641567243,6.60083079,97.076,97.02,14.88]
[1644641567438,1.44883079,97.075,97.02,14.88]
[1644641567637,5.152,97.074,97.02,14.88]
[1644641567838,1.44883079,97.08,97.02,14.88]
[1644641568039,5.151,97.087,97.02,14.88]
[1644641568040,5.151,97.079,97.02,14.88]
[1644641568242,1.44883079,97.079,97.02,14.88]
[1644641568441,5.152,97.078,97.02,14.88]
[1644641568742,1.44883079,97.08,97.021,39.63802059]
[1644641568941,5.152,97.077,97.021,39.63802059]
[1644641569141,1.44883079,97.077,97.021,39.63802059]
[1644641569340,5.152,97.076,97.02,14.88]
[1644641570147,5.152,97.079,97.02,14.88]
[1644641570346,15.4642,97.07,96.99,20.6155]
[1644641570547,4.652,97.069,96.99,5.152]
[1644641570748,1.44883079,97.066,96.99,5.152]
[1644641570947,1.44883079,97.067,96.99,5.152]
[1644641571146,1.44883079,97.062,96.99,5.152]
[1644641571352,6.60083079,97.061,96.99,5.152]
[1644641571547,1.44883079,97.065,96.99,5.152]
[1644641571754,15.4678,97.05,96.99,5.152]
[1644641572148,5.152,97.049,96.989,38.1398105]
[1644641572547,23.4841,97.048,96.989,38.1398105]
[1644641572748,5.152,97.047,96.989,38.1398105]
[1644641572952,5.152,97.047,96.971,5.152]
[1644641573546,16.392,97.047,96.971,5.152]
[1644641574348,16.392,97.047,96.97,15.4667]
[1644641574749,23.4841,97.048,96.971,5.154]
[1644641575850,5.154,97.047,96.971,5.154]
[1644641578351,5.154,97.047,96.97,15.4667]
[1644641579951,23.4841,97.048,96.971,7.53766791]
[1644641580155,0.48537122,97.046,96.981,47.61022145]
[1644641580378,0.48537122,97.046,96.99,15.4638]
[1644641580552,0.48537122,97.046,97.0,14.88]
[1644641580752,0.48537122,97.046,97.001,48.8224006]
[1644641581854,0.48537122,97.046,97.01,15.4593]
[1644641582053,0.48537122,97.046,97.02,14.88]
[1644641582255,0.48537122,97.046,97.021,48.82146572]
[1644641582455,0.48537122,97.046,97.021,53.97346572]
[1644641585358,5.152,97.088,97.021,53.97346572]
[1644641585960,20.66686015,97.087,97.021,53.97346572]
[1644641587260,5.151,97.086,97.021,53.97346572]
[1644641587882,5.151,97.088,97.021,53.97346572]
[1644641588363,20.66718349,97.087,97.021,53.97346572]
[1644641588560,5.151,97.086,97.021,53.97346572]
[1644641589365,5.151,97.088,97.021,53.97346572]
[1644641590068,20.66733071,97.087,97.03,15.4585]
[1644641590264,5.151,97.086,97.03,15.4585]
[1644641590864,20.66733071,97.085,97.03,15.4585]
[1644641591262,5.151,97.084,97.03,15.4585]
[1644641591867,5.151,97.088,97.03,15.4585]
[1644641592465,5.151,97.088,97.021,48.82146572]
[1644641592466,20.67407499,97.087,97.021,48.82146572]
[1644641592666,5.151,97.086,97.021,48.82146572]
[1644641592966,1.44883079,97.079,97.0,14.88]
[1644641593265,1.44883079,97.077,97.0,14.88]
[1644641593465,1.44883079,97.076,97.0,14.88]
[1644641593666,27.27490578,97.076,97.0,14.88]
[1644641593867,20.67407499,97.076,97.01,15.4625]
[1644641594167,25.82607499,97.075,97.01,15.4625]
[1644641594371,20.67407499,97.074,97.01,15.4625]
[1644641594969,20.67407499,97.075,97.01,15.4625]
[1644641595170,5.152,97.074,97.01,15.4625]
[1644641595788,20.67407499,97.073,97.01,15.4625]
[1644641596289,5.152,97.072,97.01,15.4625]
[1644641596691,20.67407499,97.074,97.01,15.4625]
[1644641596893,5.152,97.073,97.01,15.4625]
[1644641597091,5.152,97.074,97.01,15.4625]
[1644641597290,5.152,97.075,97.01,15.4625]
[1644641599892,24.9623,97.076,97.011,5.152]
[1644641600097,24.9623,97.076,97.02,15.4605]
[1644641602696,24.9623,97.076,97.021,5.152]
[1644641604095,15.4592,97.1,97.031,38.64749742]
[1644641604495,15.4592,97.1,97.032,5.151]
[1644641604697,20.7212177,97.099,97.032,5.151]
[1644641605897,15.4592,97.1,97.032,5.151]
[1644641606098,5.151,97.098,97.032,5.151]
[1644641606299,5.151,97.099,97.032,5.151]
[1644641606498,5.151,97.099,97.04,15.4576]
[1644641606697,5.15,97.103,97.04,15.4576]
[1644641607300,20.71806638,97.102,97.04,15.4576]
[1644641607501,5.15,97.101,97.04,15.4576]
[1644641608298,5.15,97.103,97.04,15.4576]
[1644641608900,20.72244157,97.102,97.04,15.4576]
[1644641609103,20.72244157,97.102,97.041,5.15]
[1644641609301,22.5943,97.104,97.051,41.62397532]
[1644641609602,5.15,97.115,97.052,5.15]
[1644641609802,5.15,97.115,97.052,7.53366791]
[1644641610200,0.03805717,97.13,97.053,2.38366791]
[1644641610402,0.03805717,97.14,97.07,15.4517]
[1644641610600,0.03805717,97.13,97.071,46.9413308]
[1644641610801,0.03805717,97.14,97.071,49.32499871]
[1644641611505,0.03805717,97.14,97.08,15.4475]
[1644641611902,0.03805717,97.15,97.08,15.4475]
[1644641612102,5.148,97.149,97.08,15.4475]
[1644641612305,0.03805717,97.14,97.08,15.4475]
[1644641612705,45.8176,97.159,97.08,15.4475]
[1644641612706,5.148,97.139,97.08,15.4475]
[1644641612908,5.148,97.149,97.08,15.4475]
[1644641613107,0.03805717,97.14,97.08,15.4475]
[1644641613507,5.148,97.139,97.08,15.4475]
[1644641613707,0.03805717,97.15,97.08,15.4475]
[1644641613908,5.148,97.149,97.08,15.4475]
[1644641614107,0.03805717,97.14,97.08,15.4475]
[1644641614308,5.148,97.139,97.08,15.4475]
[1644641614707,0.03805717,97.14,97.08,15.4475]
[1644641614909,5.148,97.139,97.08,15.4475]
[1644641615711,0.03805717,97.14,97.08,15.4475]
[1644641615910,15.49125717,97.14,97.08,15.4475]
[1644641617211,5.148,97.139,97.08,15.4475]
[1644641618613,0.03805717,97.14,97.081,5.148]
[1644641619113,0.03805717,97.14,97.091,46.62460756]
[1644641619313,23.6378,97.147,97.091,46.62460756]
[1644641620515,5.148,97.146,97.091,46.62460756]
[1644641620712,23.6378,97.147,97.092,5.148]
[1644641621314,5.148,97.146,97.08,15.4518]
[1644641621515,0.03805717,97.14,97.08,15.4518]
[1644641623719,5.148,97.139,97.08,15.4518]
[1644641625920,15.49085717,97.14,97.08,15.4518]
[1644641627120,5.148,97.139,97.08,15.4518]
[1644641627319,15.4544,97.13,97.06,14.88]
[1644641627521,29.0542,97.129,97.051,24.2458]
[1644641628022,39.9142,97.129,97.03,66.3973]
[1644641628223,23.6059,97.128,97.037,45.52564023]
[1644641628423,5.15,97.127,97.038,5.15]
[1644641628820,15.4565,97.12,97.05,15.4556]
[1644641629020,5.15,97.119,97.05,15.4556]
[1644641629241,5.15,97.119,97.038,5.15]
[1644641629242,7.53366791,97.119,97.038,5.15]
[1644641629442,14.88,97.11,97.038,5.15]
[1644641629642,21.88,97.1,97.038,5.15]
[1644641629843,21.88,97.1,96.99,0.024]
[1644641630042,15.466,97.07,96.991,5.152]
[1644641631345,15.466,97.07,97.0,0.024]
[1644641631544,5.152,97.069,97.0,0.024]
[1644641631743,15.4655,97.06,97.0,0.024]
[1644641632144,5.152,97.059,97.0,0.024]
[1644641632344,5.152,97.078,97.0,0.024]
[1644641632546,48.6249,97.079,97.0,0.024]
[1644641632745,48.6249,97.079,97.001,5.152]
[1644641632945,48.6249,97.079,97.001,6.60551382]
[1644641633143,48.6249,97.079,97.001,5.152]
[1644641633746,48.6249,97.079,97.02,15.4594]
[1644641633943,48.6249,97.079,97.021,41.17519056]
[1644641634145,5.152,97.078,97.003,5.151]
[1644641634344,48.6249,97.079,97.01,0.024]
[1644641634544,5.152,97.077,97.01,0.024]
[1644641634746,5.152,97.078,96.98,0.024]
[1644641634944,5.152,97.076,96.99,0.024]
[1644641635145,15.464,97.07,96.991,5.152]
[1644641635344,15.464,97.07,97.0,0.024]
[1644641635751,15.464,97.07,97.002,39.56758196]
[1644641635944,15.464,97.07,97.01,0.024]
[1644641636247,48.6249,97.079,97.01,0.024]
[1644641637547,5.152,97.078,97.01,0.024]
[1644641638746,5.152,97.078,97.011,5.152]
[1644641638947,48.6249,97.079,97.011,5.152]
[1644641639147,5.152,97.078,97.01,0.024]
[1644641639548,7.53566791,97.078,97.01,0.024]
[1644641639747,7.53566791,97.078,96.932,15.4522]
[1644641639748,5.152,97.078,96.971,1.45351382]
[1644641639948,5.152,97.078,96.98,0.024]
[1644641640151,2.38366791,97.077,96.98,0.024]
[1644641640348,2.38366791,97.077,96.972,43.95703451]
[1644641640349,5.152,97.076,96.972,43.95703451]
[1644641640552,5.152,97.076,96.98,0.024]
[1644641640749,15.4644,97.07,96.98,0.024]
[1644641640952,30.3444,97.07,96.98,0.024]
[1644641641151,5.152,97.069,96.98,0.024]
[1644641642751,15.4671,97.06,96.98,0.024]
[1644641642952,5.152,97.059,96.981,5.152]
[1644641643154,24.3859,97.058,96.99,0.024]
[1644641643353,5.152,97.057,96.99,0.024]
[1644641644155,24.3859,97.058,96.991,5.152]
[1644641644355,24.3859,97.058,96.992,47.67068697]
[1644641644556,5.152,97.057,97.0,0.024]
[1644641644755,5.152,97.057,96.98,0.024]
[1644641645155,5.152,97.057,96.981,5.152]
[1644641645456,15.4672,97.05,96.99,0.024]
[1644641645657,5.152,97.049,96.99,0.024]
[1644641648763,30.35,97.04,96.99,0.024]
[1644641648964,30.35,97.04,96.97,0.024]
[1644641649162,30.35,97.04,96.882,24.9028]
[1644641649163,185.99,97.03,96.94,0.024]
[1644641649363,14.88,97.02,96.91,0.024]
[1644641649563,28.9163,97.019,96.92,0.024]
[1644641649764,59.92116581,97.019,96.92,0.024]
[1644641649963,7.0,97.0,96.907,41.69189449]
[1644641650166,15.4826,96.98,96.92,0.024]
[1644641650364,5.157,96.979,96.907,41.69189449]
[1644641650571,14.88,96.98,96.907,41.69189449]
[1644641652270,5.157,96.979,96.908,5.157]
[1644641652469,5.157,96.979,96.91,0.024]
[1644641652669,5.157,96.979,96.911,5.157]
[1644641653070,5.157,96.979,96.92,0.024]
[1644641653270,5.157,96.979,96.908,5.157]
[1644641653471,5.157,96.979,96.92,0.024]
[1644641653674,5.157,96.979,96.908,5.157]
[1644641654874,5.157,96.979,96.907,41.69189449]
[1644641657075,24.8707,96.978,96.907,41.69189449]
[1644641657277,5.157,96.977,96.907,41.69189449]
[1644641658684,15.4801,96.97,96.9,0.024]
[1644641658882,5.158,96.969,96.9,0.024]
[1644641659281,5.158,96.969,96.88,0.024]
[1644641659483,5.158,96.969,96.89,0.024]
[1644641659884,15.4837,96.95,96.89,0.024]
[1644641660082,5.158,96.949,96.88,46.61083626]
[1644641662585,29.6204,96.949,96.88,46.61083626]
[1644641662786,24.4624,96.949,96.88,46.61083626]
[1644641664506,5.159,96.948,96.88,46.61083626]
[1644641667709,5.159,96.948,96.881,5.159]
[1644641668410,5.159,96.948,96.882,1.45351382]
[1644641668611,5.159,96.948,96.883,5.159]
[1644641668810,5.159,96.948,96.89,0.024]
[1644641670310,24.4624,96.949,96.89,0.024]
[1644641670913,24.4624,96.949,96.887,1.45351382]
[1644641671115,24.4624,96.949,96.89,0.024]
[1644641673113,24.4624,96.949,96.894,1.45351382]
[1644641673314,24.4624,96.949,96.893,1.45351382]
[1644641673514,5.158,96.948,96.893,1.45351382]
[1644641675114,5.158,96.948,96.901,1.45351382]
[1644641675517,5.158,96.948,96.899,1.45351382]
[1644641676515,5.158,96.948,96.898,1.45351382]
[1644641676718,24.4624,96.949,96.898,1.45351382]
[1644641677115,24.4624,96.949,96.912,1.45351382]
[1644641677316,24.4624,96.949,96.913,1.45351382]
[1644641677516,5.159,96.948,96.913,1.45351382]
[1644641678816,15.4847,96.94,96.907,1.45351382]
[1644641679018,15.4847,96.94,96.904,1.45351382]
[1644641679019,5.158,96.939,96.904,1.45351382]
[1644641679217,5.158,96.939,96.903,1.45351382]
[1644641679818,5.158,96.939,96.904,1.45351382]